fUSD/lending_fUSD_20260517
["ID","MTS","AMOUNT","RATE_DAILY","PERIOD"]
[422461233,1778968250000,-2926.17,0.00028788,30]
[422461234,1778968250000,-390.7,0.00028788,30]
[422461236,1778968250000,-2923.0,0.00028788,30]
[422461237,1778968250000,-1360.52,0.00028788,30]
[422461238,1778968250000,-390.83,0.0002882,2]
[422461240,1778968250000,-380.23,0.0002882,2]
[422461239,1778968250000,-1361.51,0.0002882,2]
[422461246,1778968250000,-390.83,0.00028852,7]
[422461241,1778968250000,-2926.17,0.0002882,2]
[422461251,1778968250000,-380.27,0.00028852,7]
[422461247,1778968250000,-1361.51,0.00028852,7]
[422461243,1778968250000,-380.27,0.0002882,2]
[422461242,1778968250000,-390.7,0.0002882,2]
[422461244,1778968250000,-2923.0,0.0002882,2]
[422461249,1778968250000,-2926.17,0.00028852,7]
[422461250,1778968250000,-390.7,0.00028852,7]
[422461245,1778968250000,-1360.52,0.0002882,2]
[422461248,1778968250000,-380.23,0.00028852,7]
[422461275,1778968250000,-390.83,0.00028947,7]
[422461262,1778968250000,-3000.0,0.00028883,30]
[422461253,1778968250000,-1360.52,0.00028852,7]
[422461259,1778968250000,-380.27,0.00028883,30]
[422461269,1778968250000,-380.23,0.00028915,2]
[422461298,1778968250000,-380.27,0.0002901,2]
[422461226,1778968250000,-2923.0,0.00028756,7]
[422461285,1778968250000,-380.23,0.00028979,30]
[422461320,1778968250000,-2926.17,0.00029105,2]
[422461325,1778968250000,-300.0,0.00029105,10]
[422461328,1778968250000,-284.289204,0.00029107,7]
[422461324,1778968250000,-1360.52,0.00029105,2]
[422461323,1778968250000,-2923.0,0.00029105,2]
[422461321,1778968250000,-390.7,0.00029105,2]
[422461332,1778968250000,-380.23,0.00029137,7]
[422461334,1778968250000,-390.7,0.00029137,7]
[422461339,1778968250000,-1361.51,0.00029169,30]
[422461335,1778968250000,-380.27,0.00029137,7]
[422461336,1778968250000,-2923.0,0.00029137,7]
[422461341,1778968250000,-2926.17,0.00029169,30]
[422461338,1778968250000,-390.83,0.00029169,30]
[422461342,1778968250000,-390.7,0.00029169,30]
[422461343,1778968250000,-380.27,0.00029169,30]
[422461344,1778968250000,-2923.0,0.00029169,30]
[422461337,1778968250000,-1360.52,0.00029137,7]
[422461333,1778968250000,-2926.17,0.00029137,7]
[422461354,1778968250000,-2923.0,0.00029201,2]
[422461348,1778968250000,-390.83,0.00029201,2]
[422461353,1778968250000,-380.27,0.00029201,2]
[422461345,1778968250000,-1360.52,0.00029169,30]
[422461351,1778968250000,-2926.17,0.00029201,2]
[422461352,1778968250000,-390.7,0.00029201,2]
[422461350,1778968250000,-380.23,0.00029201,2]
[422461347,1778968250000,-8321.47,0.000292,14]
[422461346,1778968250000,-969.78,0.000292,7]
[422461349,1778968250000,-1361.51,0.00029201,2]
[422461292,1778968250000,-215.03962261,0.00029,7]
[422461318,1778968250000,-1361.51,0.00029105,2]
[422461329,1778968250000,-284.289204,0.00029107,7]
[422461340,1778968250000,-380.23,0.00029169,30]
[422461331,1778968250000,-1361.51,0.00029137,7]
[422461301,1778968250000,-390.83,0.00029042,7]
[422461326,1778968250000,-284.289204,0.00029107,7]
[422461297,1778968250000,-390.7,0.0002901,2]
[422461299,1778968250000,-2923.0,0.0002901,2]
[422461283,1778968250000,-390.83,0.00028979,30]
[422461293,1778968250000,-390.83,0.0002901,2]
[422461300,1778968250000,-1360.52,0.0002901,2]
[422461291,1778968250000,-215.03962261,0.00029,30]
[422461294,1778968250000,-1361.51,0.0002901,2]
[422461295,1778968250000,-380.23,0.0002901,2]
[422461302,1778968250000,-1361.51,0.00029042,7]
[422461287,1778968250000,-390.7,0.00028979,30]
[422461304,1778968250000,-2926.17,0.00029042,7]
[422461317,1778968250000,-390.83,0.00029105,2]
[422461313,1778968250000,-390.7,0.00029074,30]
[422461288,1778968250000,-380.27,0.00028979,30]
[422461311,1778968250000,-380.23,0.00029074,30]
[422461322,1778968250000,-380.27,0.00029105,2]
[422461309,1778968250000,-390.83,0.00029074,30]
[422461330,1778968250000,-390.83,0.00029137,7]
[422461319,1778968250000,-380.23,0.00029105,2]
[422461312,1778968250000,-2926.17,0.00029074,30]
[422461310,1778968250000,-1361.51,0.00029074,30]
[422461314,1778968250000,-380.27,0.00029074,30]
[422461327,1778968250000,-284.289204,0.00029107,7]
[422461316,1778968250000,-1360.52,0.00029074,30]
[422461306,1778968250000,-380.27,0.00029042,7]
[422461308,1778968250000,-1360.52,0.00029042,7]
[422461305,1778968250000,-390.7,0.00029042,7]
[422461307,1778968250000,-2923.0,0.00029042,7]
[422461315,1778968250000,-2923.0,0.00029074,30]
[422461391,1778968251000,-151.0,0.000296,7]
[422461375,1778968251000,-926.0,0.00029329,2]
[422461385,1778968251000,-151.0,0.00029588,7]
[422461382,1778968251000,-193.99079007,0.0002936,5]
[422461381,1778968251000,-417.0,0.00029329,2]
[422461404,1778968251000,-151.0,0.000296,7]
[422461392,1778968251000,-151.0,0.000296,7]
[422461397,1778968251000,-240.725161,0.000296,7]
[422461373,1778968251000,-3543.0,0.00029329,2]
[422461395,1778968251000,-151.0,0.000296,7]
[422461398,1778968251000,-240.725161,0.000296,7]
[422461386,1778968251000,-1290.73,0.000296,7]
[422461376,1778968251000,-625.0,0.00029329,2]
[422461396,1778968251000,-151.0,0.000296,7]
[422461414,1778968251000,-346.01837026,0.00029829,2]
[422461388,1778968251000,-1850.140719,0.000296,7]
[422461400,1778968251000,-240.725161,0.000296,7]
[422461407,1778968251000,-211.0,0.00029619,2]
[422461406,1778968251000,-151.0,0.000296,7]
[422461411,1778968251000,-300.0,0.00029724,2]
[422461410,1778968251000,-300.0,0.00029724,2]
[422461432,1778968251000,-823.5955727,0.00030137,30]
[422461421,1778968251000,-2917.0,0.000301,7]
[422461433,1778968251000,-354.0,0.00030167,30]
[422461422,1778968251000,-705.09034753,0.000301,2]
[422461418,1778968251000,-650.0,0.0003,2]
[422461417,1778968251000,-1000.0,0.00029996,24]
[422461424,1778968251000,-705.09034751,0.000301,2]
[422461384,1778968251000,-150.0,0.00029534,2]
[422461378,1778968251000,-1223.0,0.00029329,2]
[422461390,1778968251000,-1850.140719,0.000296,7]
[422461355,1778968251000,-1360.52,0.00029201,2]
[422461374,1778968251000,-1354.0,0.00029329,2]
[422461427,1778968251000,-600.73407741,0.000301,2]
[422461362,1778968251000,-2923.05,0.00029232,7]
[422461363,1778968251000,-1360.62,0.00029232,7]
[422461358,1778968251000,-380.27,0.00029232,7]
[422461364,1778968251000,-169.04413323,0.00029241,7]
[422461365,1778968251000,-174.88300058,0.00029241,7]
[422461356,1778968251000,-390.99,0.00029232,7]
[422461359,1778968251000,-2926.28,0.00029232,7]
[422461357,1778968251000,-1361.66,0.00029232,7]
[422461360,1778968251000,-390.84,0.00029232,7]
[422461366,1778968251000,-153.1829813,0.00029241,2]
[422461368,1778968251000,-1486.69,0.00029246,7]
[422461369,1778968251000,-16956.59816678,0.00029256,2]
[422461367,1778968251000,-154.57234443,0.00029241,7]
[422461377,1778968251000,-1270.0,0.00029329,2]
[422461371,1778968251000,-28168.0,0.000293,2]
[422461402,1778968251000,-151.0,0.000296,7]
[422461372,1778968251000,-500.0,0.00029315,2]
[422461383,1778968251000,-1078.25,0.000294,7]
[422461393,1778968251000,-170.352023,0.000296,7]
[422461389,1778968251000,-1850.140719,0.000296,7]
[422461387,1778968251000,-1850.140719,0.000296,7]
[422461379,1778968251000,-150.0,0.00029329,2]
[422461403,1778968251000,-240.725161,0.000296,7]
[422461399,1778968251000,-151.0,0.000296,7]
[422461405,1778968251000,-151.0,0.000296,7]
[422461394,1778968251000,-151.0,0.000296,7]
[422461401,1778968251000,-151.0,0.000296,7]
[422461370,1778968251000,-546.0,0.00029273,4]
[422461380,1778968251000,-930.0,0.00029329,2]
[422461412,1778968251000,-208.0,0.00029724,2]
[422461361,1778968251000,-380.34,0.00029232,7]
[422461431,1778968251000,-1922.97,0.00030137,30]
[422461452,1778968251000,-159.11707341,0.0003061,7]
[422461457,1778968251000,-546.0,0.00030875,6]
[422461461,1778968251000,-354.0,0.00031167,30]
[422461460,1778968251000,-1486.69,0.00031096,7]
[422461459,1778968251000,-200.0,0.00031096,2]
[422461449,1778968251000,-349.76600115,0.00030602,7]
[422461463,1778968251000,-157.0,0.00031167,30]
[422461474,1778968251000,-500.0,0.00031167,2]
[422461475,1778968251000,-500.0,0.00031167,2]
[422461473,1778968251000,-500.0,0.00031167,2]
[422461466,1778968251000,-160.81567875,0.00031167,30]
[422461464,1778968251000,-155.0,0.00031167,30]
[422461465,1778968251000,-334.0,0.00031167,30]
[422461462,1778968251000,-154.0,0.00031167,30]
[422461458,1778968251000,-150.0,0.00031011,2]
[422461471,1778968251000,-500.0,0.00031167,2]
[422461467,1778968251000,-500.0,0.00031167,2]
[422461468,1778968251000,-500.0,0.00031167,2]
[422461470,1778968251000,-500.0,0.00031167,2]
[422461472,1778968251000,-500.0,0.00031167,2]
[422461476,1778968251000,-500.0,0.00031167,2]
[422461479,1778968251000,-500.0,0.00031167,2]
[422461478,1778968251000,-500.0,0.00031167,2]
[422461481,1778968251000,-500.0,0.00031167,2]
[422461480,1778968251000,-500.0,0.00031167,2]
[422461482,1778968251000,-500.0,0.00031167,2]
[422461483,1778968251000,-500.0,0.00031167,2]
[422461485,1778968251000,-500.0,0.00031167,2]
[422461477,1778968251000,-500.0,0.00031167,2]
[422461419,1778968251000,-215.03962261,0.0003,30]
[422461469,1778968251000,-500.0,0.00031167,2]
[422461450,1778968251000,-306.36596259,0.00030602,2]
[422461484,1778968251000,-500.0,0.00031167,2]
[422461456,1778968251000,-5530.0,0.000308,5]
[422461454,1778968251000,-156.33367028,0.0003061,7]
[422461408,1778968251000,-150.0,0.00029683,2]
[422461420,1778968251000,-215.03962261,0.0003,7]
[422461423,1778968251000,-705.09034751,0.000301,2]
[422461430,1778968251000,-200.0,0.00030137,2]
[422461415,1778968251000,-165.0,0.00029896,2]
[422461416,1778968251000,-171.99539503,0.00029947,5]
[422461425,1778968251000,-5530.0,0.000301,3]
[422461428,1778968251000,-600.73407741,0.000301,2]
[422461429,1778968251000,-679.41,0.00030137,2]
[422461426,1778968251000,-600.73407744,0.000301,2]
[422461409,1778968251000,-204.0,0.00029683,2]
[422461439,1778968251000,-206.0,0.00030171,30]
[422461446,1778968251000,-8321.47,0.000304,14]
[422461436,1778968251000,-155.0,0.00030167,30]
[422461413,1778968251000,-546.0,0.00029807,4]
[422461445,1778968251000,-546.0,0.00030341,5]
[422461453,1778968251000,-158.81822993,0.0003061,7]
[422461455,1778968251000,-180.48177615,0.00030798,6]
[422461451,1778968251000,-309.14468886,0.00030602,7]
[422461448,1778968251000,-338.08826646,0.00030602,7]
[422461434,1778968251000,-154.0,0.00030167,30]
[422461437,1778968251000,-334.0,0.00030167,30]
[422461444,1778968251000,-851.9,0.00030239,2]
[422461441,1778968251000,-577.0,0.00030171,30]
[422461443,1778968251000,-212.0,0.00030171,30]
[422461447,1778968251000,-10000.0,0.00030502,2]
[422461442,1778968251000,-740.0,0.00030171,30]
[422461438,1778968251000,-152.0,0.00030167,30]
[422461440,1778968251000,-151.0,0.00030171,30]
[422461435,1778968251000,-157.0,0.00030167,30]
[422461528,1778968252000,-500.0,0.00031167,2]
[422461530,1778968252000,-500.0,0.00031167,2]
[422461521,1778968252000,-500.0,0.00031167,2]
[422461523,1778968252000,-500.0,0.00031167,2]
[422461526,1778968252000,-500.0,0.00031167,2]
[422461525,1778968252000,-500.0,0.00031167,2]
[422461519,1778968252000,-500.0,0.00031167,2]
[422461518,1778968252000,-500.0,0.00031167,2]
[422461522,1778968252000,-500.0,0.00031167,2]
[422461520,1778968252000,-500.0,0.00031167,2]
[422461529,1778968252000,-500.0,0.00031167,2]
[422461527,1778968252000,-500.0,0.00031167,2]
[422461534,1778968252000,-500.0,0.00031167,2]
[422461537,1778968252000,-500.0,0.00031167,2]
[422461531,1778968252000,-500.0,0.00031167,2]
[422461542,1778968252000,-500.0,0.00031167,2]
[422461533,1778968252000,-500.0,0.00031167,2]
[422461532,1778968252000,-500.0,0.00031167,2]
[422461543,1778968252000,-500.0,0.00031167,2]
[422461540,1778968252000,-500.0,0.00031167,2]
[422461539,1778968252000,-500.0,0.00031167,2]
[422461538,1778968252000,-500.0,0.00031167,2]
[422461536,1778968252000,-500.0,0.00031167,2]
[422461541,1778968252000,-500.0,0.00031167,2]
[422461545,1778968252000,-500.0,0.00031167,2]
[422461524,1778968252000,-500.0,0.00031167,2]
[422461551,1778968252000,-500.0,0.00031167,2]
[422461535,1778968252000,-500.0,0.00031167,2]
[422461513,1778968252000,-500.0,0.00031167,2]
[422461495,1778968252000,-500.0,0.00031167,2]
[422461511,1778968252000,-500.0,0.00031167,2]
[422461548,1778968252000,-500.0,0.00031167,2]
[422461486,1778968252000,-500.0,0.00031167,2]
[422461490,1778968252000,-500.0,0.00031167,2]
[422461488,1778968252000,-500.0,0.00031167,2]
[422461487,1778968252000,-500.0,0.00031167,2]
[422461489,1778968252000,-500.0,0.00031167,2]
[422461492,1778968252000,-500.0,0.00031167,2]
[422461504,1778968252000,-500.0,0.00031167,2]
[422461494,1778968252000,-500.0,0.00031167,2]
[422461502,1778968252000,-500.0,0.00031167,2]
[422461491,1778968252000,-500.0,0.00031167,2]
[422461503,1778968252000,-500.0,0.00031167,2]
[422461493,1778968252000,-500.0,0.00031167,2]
[422461501,1778968252000,-500.0,0.00031167,2]
[422461497,1778968252000,-500.0,0.00031167,2]
[422461496,1778968252000,-500.0,0.00031167,2]
[422461500,1778968252000,-500.0,0.00031167,2]
[422461499,1778968252000,-500.0,0.00031167,2]
[422461498,1778968252000,-500.0,0.00031167,2]
[422461505,1778968252000,-500.0,0.00031167,2]
[422461507,1778968252000,-500.0,0.00031167,2]
[422461508,1778968252000,-500.0,0.00031167,2]
[422461509,1778968252000,-500.0,0.00031167,2]
[422461517,1778968252000,-500.0,0.00031167,2]
[422461515,1778968252000,-500.0,0.00031167,2]
[422461510,1778968252000,-500.0,0.00031167,2]
[422461506,1778968252000,-500.0,0.00031167,2]
[422461516,1778968252000,-500.0,0.00031167,2]
[422461514,1778968252000,-500.0,0.00031167,2]
[422461512,1778968252000,-500.0,0.00031167,2]
[422461547,1778968252000,-500.0,0.00031167,2]
[422461546,1778968252000,-500.0,0.00031167,2]
[422461549,1778968252000,-500.0,0.00031167,2]
[422461580,1778968252000,-207.56855496,0.00031517,7]
[422461584,1778968252000,-263.2447048,0.00031517,7]
[422461588,1778968252000,-546.0,0.00031943,7]
[422461587,1778968252000,-300.0,0.00031887,10]
[422461589,1778968252000,-500.0,0.00031945,2]
[422461586,1778968252000,-8321.47,0.000317,14]
[422461595,1778968252000,-676.17653292,0.00032115,7]
[422461585,1778968252000,-312.66734055,0.00031517,7]
[422461591,1778968252000,-205.02579286,0.00032071,7]
[422461593,1778968252000,-1290.73,0.000321,7]
[422461590,1778968252000,-200.0,0.00032055,2]
[422461594,1778968252000,-500.0,0.00032112,120]
[422461592,1778968252000,-249.34276348,0.00032071,7]
[422461577,1778968252000,-463.71703329,0.0003151,7]
[422461596,1778968252000,-152.59631586,0.00032115,7]
[422461606,1778968252000,-263.90649912,0.00032115,2]
[422461608,1778968252000,-408.96815846,0.00032115,7]
[422461597,1778968252000,-253.09871637,0.00032115,7]
[422461607,1778968252000,-524.67085707,0.00032115,7]
[422461609,1778968252000,-400.51385687,0.00032115,7]
[422461602,1778968252000,-232.65099278,0.00032115,2]
[422461600,1778968252000,-214.76054842,0.00032115,7]
[422461599,1778968252000,-496.36294136,0.00032115,7]
[422461601,1778968252000,-333.91511921,0.00032115,7]
[422461544,1778968252000,-500.0,0.00031167,2]
[422461605,1778968252000,-519.41951183,0.00032115,7]
[422461604,1778968252000,-352.19062219,0.00032115,7]
[422461610,1778968252000,-162.26913068,0.00032115,7]
[422461598,1778968252000,-699.5320023,0.00032115,7]
[422461579,1778968252000,-206.13548185,0.00031517,7]
[422461603,1778968252000,-182.01166614,0.00032115,7]
[422461576,1778968252000,-459.54894389,0.0003151,2]
[422461578,1778968252000,-164.68699442,0.0003151,7]
[422461556,1778968252000,-165.407147,0.00031167,7]
[422461557,1778968252000,-206.0,0.00031171,30]
[422461550,1778968252000,-500.0,0.00031167,2]
[422461552,1778968252000,-500.0,0.00031167,2]
[422461554,1778968252000,-170.940753,0.00031167,2]
[422461553,1778968252000,-500.0,0.00031167,2]
[422461559,1778968252000,-577.0,0.00031171,30]
[422461569,1778968252000,-241.24251113,0.0003151,7]
[422461567,1778968252000,-524.64900173,0.0003151,7]
[422461558,1778968252000,-151.0,0.00031171,30]
[422461564,1778968252000,-1000.0,0.000315,7]
[422461563,1778968252000,-546.0,0.00031409,6]
[422461562,1778968252000,-1078.25,0.000312,7]
[422461555,1778968252000,-151.0,0.00031167,7]
[422461561,1778968252000,-212.0,0.00031171,30]
[422461570,1778968252000,-259.70975591,0.0003151,7]
[422461574,1778968252000,-289.09716566,0.0003151,7]
[422461573,1778968252000,-200.25692844,0.0003151,7]
[422461571,1778968252000,-262.33542854,0.0003151,7]
[422461583,1778968252000,-267.32207255,0.00031517,7]
[422461575,1778968252000,-289.94643154,0.0003151,7]
[422461572,1778968252000,-204.48407923,0.0003151,7]
[422461560,1778968252000,-740.0,0.00031171,30]
[422461582,1778968252000,-317.63645987,0.00031517,7]
[422461581,1778968252000,-318.23414683,0.00031517,7]
[422461565,1778968252000,-1322.1755727,0.00031507,30]
[422461568,1778968252000,-248.18147068,0.0003151,7]
[422461566,1778968252000,-507.13239969,0.0003151,7]
[422461632,1778968253000,-477.35122024,0.00032122,7]
[422461653,1778968253000,-150.0,0.000322,2]
[422461644,1778968253000,-154.0,0.00032167,30]
[422461638,1778968253000,-534.64414511,0.00032122,7]
[422461640,1778968253000,-334.73444718,0.00032122,2]
[422461642,1778968253000,-371.59053031,0.00032122,7]
[422461646,1778968253000,-155.0,0.00032167,30]
[422461645,1778968253000,-157.0,0.00032167,30]
[422461647,1778968253000,-334.0,0.00032167,30]
[422461652,1778968253000,-212.0,0.00032171,30]
[422461656,1778968253000,-1354.0,0.00032329,2]
[422461639,1778968253000,-526.4894096,0.00032122,7]
[422461650,1778968253000,-577.0,0.00032171,30]
[422461649,1778968253000,-151.0,0.00032171,30]
[422461648,1778968253000,-206.0,0.00032171,30]
[422461654,1778968253000,-851.9,0.0003221,5]
[422461655,1778968253000,-3543.0,0.00032329,2]
[422461657,1778968253000,-926.0,0.00032329,2]
[422461665,1778968253000,-336.56,0.00032389,5]
[422461664,1778968253000,-1000.0,0.00032368,6]
[422461659,1778968253000,-1270.0,0.00032329,2]
[422461658,1778968253000,-625.0,0.00032329,2]
[422461663,1778968253000,-417.0,0.00032329,2]
[422461635,1778968253000,-196.41253023,0.00032122,7]
[422461651,1778968253000,-740.0,0.00032171,30]
[422461634,1778968253000,-476.4546898,0.00032122,7]
[422461622,1778968253000,-412.27096369,0.00032122,7]
[422461643,1778968253000,-354.0,0.00032167,30]
[422461661,1778968253000,-150.0,0.00032329,2]
[422461612,1778968253000,-578.19433132,0.00032115,7]
[422461611,1778968253000,-211.15173831,0.00032115,5]
[422461617,1778968253000,-179.2138014,0.00032115,7]
[422461614,1778968253000,-180.70414806,0.00032115,7]
[422461615,1778968253000,-170.33166223,0.00032115,7]
[422461619,1778968253000,-192.60373668,0.00032115,7]
[422461613,1778968253000,-579.89286309,0.00032115,7]
[422461616,1778968253000,-612.73192518,0.00032115,2]
[422461618,1778968253000,-618.28937773,0.00032115,7]
[422461621,1778968253000,-351.05400467,0.00032122,7]
[422461641,1778968253000,-469.00101083,0.00032122,7]
[422461631,1778968253000,-339.61857189,0.00032122,7]
[422461624,1778968253000,-415.13710991,0.00032122,7]
[422461623,1778968253000,-303.98551273,0.00032122,7]
[422461626,1778968253000,-334.33741163,0.00032122,7]
[422461625,1778968253000,-204.45489781,0.00032122,7]
[422461630,1778968253000,-157.44591693,0.00032122,7]
[422461628,1778968253000,-482.48502227,0.00032122,7]
[422461627,1778968253000,-222.03387672,0.00032122,7]
[422461629,1778968253000,-158.43826638,0.00032122,7]
[422461633,1778968253000,-229.15800551,0.00032122,7]
[422461637,1778968253000,-171.927388,0.00032122,7]
[422461636,1778968253000,-440.55108259,0.00032122,7]
[422461620,1778968253000,-329.37398885,0.00032115,7]
[422461660,1778968253000,-1223.0,0.00032329,2]
[422461684,1778968253000,-1000.0,0.0003301,8]
[422461666,1778968253000,-546.0,0.00032477,7]
[422461694,1778968253000,-206.0,0.00033171,30]
[422461692,1778968253000,-157.0,0.00033167,30]
[422461695,1778968253000,-151.0,0.00033171,30]
[422461702,1778968253000,-919.09788777,0.00033627,2]
[422461698,1778968253000,-212.0,0.00033171,30]
[422461697,1778968253000,-740.0,0.00033171,30]
[422461696,1778968253000,-577.0,0.00033171,30]
[422461701,1778968253000,-1049.29800345,0.00033627,7]
[422461704,1778968253000,-211.0,0.00033728,2]
[422461703,1778968253000,-927.43406659,0.00033627,7]
[422461706,1778968253000,-204.0,0.00033792,2]
[422461699,1778968253000,-546.0,0.00033545,9]
[422461707,1778968253000,-300.0,0.00033833,2]
[422461709,1778968253000,-208.0,0.00033833,2]
[422461705,1778968253000,-150.0,0.00033792,2]
[422461713,1778968253000,-546.0,0.00034079,9]
[422461711,1778968253000,-659.73,0.00033973,5]
[422461712,1778968253000,-165.0,0.00034005,2]
[422461710,1778968253000,-173.24,0.00033957,120]
[422461715,1778968253000,-354.0,0.00034167,30]
[422461718,1778968253000,-334.0,0.00034167,30]
[422461719,1778968253000,-206.0,0.00034171,30]
[422461716,1778968253000,-154.0,0.00034167,30]
[422461662,1778968253000,-930.0,0.00032329,2]
[422461708,1778968253000,-300.0,0.00033833,2]
[422461700,1778968253000,-1014.26479938,0.00033627,7]
[422461714,1778968253000,-230.66891351,0.00034091,7]
[422461691,1778968253000,-154.0,0.00033167,30]
[422461693,1778968253000,-334.0,0.00033167,30]
[422461669,1778968253000,-845.22066615,0.0003272,7]
[422461674,1778968253000,-887.0560914,0.0003286,2]
[422461673,1778968253000,-16956.59816678,0.00032818,2]
[422461672,1778968253000,-772.86172216,0.0003272,7]
[422461667,1778968253000,-274.29673012,0.00032496,2]
[422461678,1778968253000,-448.43651,0.00032877,7]
[422461668,1778968253000,-150.0,0.00032562,2]
[422461675,1778968253000,-1099.96566879,0.0003287,2]
[422461676,1778968253000,-679.41,0.00032877,2]
[422461671,1778968253000,-765.91490648,0.0003272,2]
[422461677,1778968253000,-448.43651,0.00032877,7]
[422461670,1778968253000,-874.41500288,0.0003272,7]
[422461680,1778968253000,-448.43651,0.00032877,7]
[422461717,1778968253000,-157.0,0.00034167,30]
[422461687,1778968253000,-3188.447,0.0003308,34]
[422461689,1778968253000,-1078.25,0.000331,30]
[422461688,1778968253000,-204.53,0.0003308,34]
[422461685,1778968253000,-546.0,0.00033011,8]
[422461683,1778968253000,-8321.47,0.00033,14]
[422461690,1778968253000,-354.0,0.00033167,30]
[422461679,1778968253000,-448.43651,0.00032877,7]
[422461682,1778968253000,-1486.69,0.00032945,30]
[422461681,1778968253000,-1446.8255727,0.00032877,30]
[422461686,1778968253000,-350.0,0.00033014,5]
[422461771,1778968254000,-7734.53918169,0.00034892,2]
[422461758,1778968254000,-151.0,0.0003467,7]
[422461759,1778968254000,-2267.62471776,0.00034678,2]
[422461754,1778968254000,-542.96820962,0.00034533,2]
[422461757,1778968254000,-4145.74070859,0.00034649,2]
[422461752,1778968254000,-532.0691179,0.00034324,60]
[422461760,1778968254000,-1078.25,0.000347,30]
[422461755,1778968254000,-2267.62471776,0.00034554,2]
[422461753,1778968254000,-2267.62471776,0.00034492,2]
[422461751,1778968254000,-500.0,0.00034324,60]
[422461765,1778968254000,-1486.69,0.00034794,60]
[422461756,1778968254000,-546.0,0.00034613,10]
[422461773,1778968254000,-4145.74070859,0.00034938,2]
[422461774,1778968254000,-1183.30893261,0.00034989,7]
[422461769,1778968254000,-4145.74070859,0.0003487,2]
[422461767,1778968254000,-4145.74070859,0.00034814,2]
[422461764,1778968254000,-500.0,0.00034767,2]
[422461766,1778968254000,-1500.0,0.00034795,2]
[422461770,1778968254000,-4145.74070859,0.00034875,2]
[422461763,1778968254000,-4145.74070859,0.00034734,2]
[422461762,1778968254000,-542.96820962,0.00034722,2]
[422461761,1778968254000,-4145.74070859,0.0003472,2]
[422461772,1778968254000,-206.205718,0.000349,10]
[422461775,1778968254000,-1072.28086907,0.00034989,2]
[422461776,1778968254000,-1082.00641102,0.00034989,7]
[422461778,1778968254000,-237374.4977845,0.00035,2]
[422461750,1778968254000,-500.0,0.00034324,60]
[422461768,1778968254000,-7734.53918169,0.00034841,2]
[422461748,1778968254000,-500.0,0.00034324,60]
[422461722,1778968254000,-740.0,0.00034171,30]
[422461745,1778968254000,-500.0,0.00034324,60]
[422461720,1778968254000,-151.0,0.00034171,30]
[422461726,1778968254000,-1000.0,0.00034199,9]
[422461779,1778968254000,-151.0,0.00035,7]
[422461724,1778968254000,-851.9,0.00034182,7]
[422461721,1778968254000,-577.0,0.00034171,30]
[422461725,1778968254000,-150.0,0.0003419,2]
[422461723,1778968254000,-212.0,0.00034171,30]
[422461728,1778968254000,-500.0,0.00034212,120]
[422461727,1778968254000,-1290.73,0.000342,7]
[422461730,1778968254000,-1571.4655727,0.00034247,30]
[422461729,1778968254000,-1454.18703238,0.00034246,7]
[422461731,1778968254000,-240.97153234,0.0003429,3]
[422461735,1778968254000,-200.0,0.0003429,3]
[422461733,1778968254000,-329.0784958,0.0003429,3]